Cogmind - Beta 13 *** ADVENTURER MODE // 2024.05.12 @ 12:49:17 Player: Catalyst Result: Destroyed by Y-64 Sentinel with Wave Gun Performance ------------- Evolutions (4) 2000 Regions Visited (13) 2600 Robots Destroyed (182) 910 Value Destroyed (8752) 8752 Prototype IDs (9) 180 Alien Tech Used (0) 0 Bonus (3437) 3437 TOTAL SCORE: 17879 Bonus ------- High Alert Combat Kills 1153 Follower Combat Kills 1705 Entered Garrisons 400 Used RIF Installer 1000 Friendly Fire -821 Cogmind --------- Core Integrity 0/850 Matter 21/300 Energy 76/100 System Corruption 3% Temperature Cool (9) Movement Core (50) Location -6/Archives Parts ------- > --- POWER (1) -------- (None) > --- PROPULSION (7) --- (None) > --- UTILITY (5) ------ (None) > --- WEAPON (2) ------- (None) > --- INVENTORY (5) ---- Improved Cryofiber Web Compact Battery (200) Relay Coupler [Sentry] (26) Improved Remote Datajack Peak State ------------ > --- POWER ------------ Fission Core > --- PROPULSION ------- Improved Carbon-fiber Leg Flexi-carbon Leg Flexi-carbon Leg Improved VSS Leg Medium Armored Exoskeleton > --- UTILITY ---------- Improved Cryofiber Web Huge Storage Unit Enhanced Optical Array Advanced Signal Interpreter Layered Light Armor Plating > --- WEAPON ----------- Coil Gun Coil Gun > --- INVENTORY -------- Angular Momentum Engine Light Angular Momentum Engine Fission Core Carbon-fiber Leg Flexi-carbon Leg Flexi-carbon Leg Improved VSS Leg Improved VSS Leg Improved VSS Leg Improved VSS Leg Large Storage Unit Compact Battery High-capacity Matter Pod Melee Analysis Suite Core Shielding Insulated Plating Authchip [Storage] Relay Coupler [Grunt] Relay Coupler [Sentry] Gauss Rifle Heavy Machine Gun Shock Bomb Launcher Grenade Launcher Improved Grenade Launcher Improved Remote Datajack [Rating: 81] Favorites ----------- Power Light Angular Momentum Engine Engine Light Angular Momentum Engine Power Core Fission Core Reactor Cold Fusion Reactor Propulsion Medium Armored Exoskeleton Leg Medium Armored Exoskeleton Utility Huge Storage Unit Device Cooling System Storage Huge Storage Unit Processor Advanced Visual Processing Unit Hackware Relay Coupler [Grunt] Protection Layered Light Armor Plating Weapon Heavy Assault Rifle Energy Gun Small Laser Energy Cannon EM Pulse Cannon Ballistic Gun Heavy Assault Rifle Ballistic Cannon Gauss Cannon Launcher Shock Bomb Launcher Special Weapon Improved Remote Datajack Impact Weapon Maul Slashing Weapon Phasing Sabre Special Melee Weapon Datajack Build | -11 -10 -9 -8 -8 -8 -8 -8 -8 -8 -6 -6 -6 -6 ------- Run | Yrd Mat Mat Mat Gar Mat Gar Mat Sto Rec Fac Ext Cet Arc Slots Evolved 8 | . . 2 2 . . . . . . 4 . . . Power . | . . . . . . . . . . . . . . Propulsion 5 | . . 2 . . . . . . . 3 . . . Utility 3 | . . . 2 . . . . . . 1 . . . Weapon . | . . . . . . . . . . . . . . Parts Attached 204 | 5 11 23 9 26 11 20 5 6 3 57 14 9 5 Power 14 | 1 1 2 . 1 3 2 . . . 4 . . . Engine 9 | 1 1 2 . . 1 2 . . . 2 . . . Core 4 | . . . . 1 2 . . . . 1 . . . Reactor 1 | . . . . . . . . . . 1 . . . Propulsion 66 | 2 4 12 1 8 1 3 2 . 1 22 5 5 . Treads . | . . . . . . . . . . . . . . Leg 66 | 2 4 12 1 8 1 3 2 . 1 22 5 5 . Wheel . | . . . . . . . . . . . . . . Hover . | . . . . . . . . . . . . . . Flight . | . . . . . . . . . . . . . . Utility 36 | . 2 1 2 9 4 5 . 1 1 8 1 2 . Device 5 | . 1 . 1 . . 1 . . . 2 . . . Storage 7 | . 1 1 . 3 1 . . . 1 . . . . Processor 7 | . . . . . 1 1 . 1 . 3 . 1 . Hackware 7 | . . . . 4 . 2 . . . 1 . . . Protection 10 | . . . 1 2 2 1 . . . 2 1 1 . Artifact . | . . . . . . . . . . . . . . Weapon 88 | 2 4 8 6 8 3 10 3 5 1 23 8 2 5 Energy Gun 5 | 2 1 2 . . . . . . . . . . . Energy Cannon 1 | . . . . . . . . . . 1 . . . Ballistic Gun 45 | . 3 6 4 6 2 5 . 2 . 16 . . 1 Ballistic Cannon 13 | . . . . . . 1 2 1 . 2 4 1 2 Launcher 14 | . . . 2 2 1 2 . 1 . 4 . 1 1 Special Weapon 7 | . . . . . . 1 . 1 1 . 4 . . Impact Weapon 1 | . . . . . . . 1 . . . . . . Slashing Weapon 1 | . . . . . . . . . . . . . 1 Piercing Weapon . | . . . . . . . . . . . . . . Special Melee Weapon 1 | . . . . . . 1 . . . . . . . Unidentified Prototypes 5 | . . 2 . . 1 . . . . 2 . . . Corrupted Parts 1 | . . . . . . . . . . . 1 . . System Corruption 3 | . . . . . . . . . . . 3 . . Parts Lost 44 | . . 3 . 1 2 5 . 1 . 9 2 6 15 Power 5 | . . 1 . . . 2 . . . 1 . . 1 Propulsion 17 | . . 1 . 1 1 1 . . . 3 1 4 5 Utility 8 | . . . . . 1 . . . . 2 1 1 3 Weapon 14 | . . 1 . . . 2 . 1 . 3 . 1 6 Highest Loss Streak 15 | . . 3 . 1 1 2 . 1 . 3 2 4 15 To Critical Strikes 2 | . . . . . . . . . . 1 . . 1 Average Slot Usage (%) 85 | . 92 99 92 91 80 79 80 80 81 85 85 92 57 Engine 5 | . 14 10 9 4 . 6 9 9 9 2 . . . Core 2 | . . . . 4 8 2 . . . 2 . . . Leg 27 | . 28 44 36 27 18 17 17 18 18 32 32 41 19 Device 3 | . 13 11 12 14 . . . . . 1 . . . Storage 8 | . 12 11 9 9 9 9 9 9 9 6 6 6 1 Processor 10 | . . . . . 8 9 18 17 18 13 13 18 17 Hackware 4 | . . . . 5 . 7 9 9 9 3 . . . Protection 6 | . . . 6 7 16 9 . . . 7 12 7 3 Ballistic Gun 11 | . 17 20 17 16 17 10 9 12 9 9 2 . . Ballistic Cannon 2 | . . . . . . 6 8 4 . 1 6 8 7 Special Weapon 1 | . . . . . . . . 1 8 . 3 . . Naked Turns 7 | . . . . . . . . . . . . . 7 Heaviest Build 128 | 6 20 26 34 38 51 46 40 40 98 128 126 110 106 Greatest Support 130 | 20 20 40 45 68 68 68 65 62 62 125 130 128 83 Greatest Overweight (x) 2 | . . . . . . . . . 1 1 1 1 2 Average Overweight (x) . | . . . . . . . . . . . . . . Largest Inventory Capacity 25 | 5 8 10 10 10 15 15 15 15 25 25 25 25 25 Average Capacity 18 | 5 7 8 10 10 13 15 15 15 24 25 25 25 11 Most Carried 25 | 1 8 10 10 10 15 15 15 15 25 25 25 24 18 Average Carried 17 | . 6 8 10 9 12 14 15 14 22 24 24 19 9 Final Capacity 25 | 5 8 10 10 10 15 15 15 15 25 25 25 25 5 Final Carried 25 | 1 8 10 10 10 13 15 15 15 25 25 25 19 4 Class Distribution -------------------- 67% | Mutant 15% | Commander-Mutant 15% | Scavenger-Mutant Dominant Class ---------------- Mutant | -10/Materials Scavenger-Mutant | -9/Materials Scavenger-Mutant | -8/Materials Scavenger-Mutant | -8/Garrison Mutant | -8/Materials Mutant | -8/Garrison Mutant | -8/Materials Mutant | -8/Storage Commander-Mutant | -8/Recycling Mutant | -6/Factory Mutant | -6/Extension Scavenger-Mutant | -6/Cetus Mutant | -6/Archives Resources | -11 -10 -9 -8 -8 -8 -8 -8 -8 -8 -6 -6 -6 -6 ----------- Run | Yrd Mat Mat Mat Gar Mat Gar Mat Sto Rec Fac Ext Cet Arc Matter Collected 6702 | 250 262 575 221 812 577 663 403 356 432 1583 568 . . Remotely . | . . . . . . . . . . . . . . Salvage Created 7202 | 50 308 753 488 981 1115 735 225 335 . 1875 228 109 . Parts 375 | . 10 42 24 61 54 42 8 19 . 101 13 1 . Haulers Intercepted 6 | . 1 2 . . 1 . 1 1 . . . . . Recyclers Shooed 4 | . . 1 1 . . . . . . 2 . . . Parts Field Recycled . | . . . . . . . . . . . . . . Retrieved Matter . | . . . . . . . . . . . . . . Parts Self-Destructed . | . . . . . . . . . . . . . . Prevented . | . . . . . . . . . . . . . . Kills | -11 -10 -9 -8 -8 -8 -8 -8 -8 -8 -6 -6 -6 -6 ------- Run | Yrd Mat Mat Mat Gar Mat Gar Mat Sto Rec Fac Ext Cet Arc Combat Hostiles Destroyed 159 | 1 4 14 8 22 22 27 4 11 . 40 4 1 1 Guns 95 | 1 4 14 6 15 18 5 2 2 . 28 . . . Cannons 27 | . . . . . . 10 2 4 . 5 4 1 1 AOE 36 | . . . 2 7 4 12 . 5 . 6 . . . Classes Destroyed 15 | 1 2 2 1 2 2 . 1 2 . 2 . . . Worker 5 | . . . . . . . . 1 . 4 . . . Builder 2 | . . . . . . . 1 . . 1 . . . Hauler 6 | . 1 2 . . 1 . 1 1 . . . . . Recycler 3 | . 1 1 1 . . . . . . . . . . Mechanic 2 | . . . . . 1 . . 1 . . . . . Watcher 1 | . . . . . . . . . . 1 . . . Swarmer 29 | . . 3 . 8 3 5 . 2 . 8 . . . Grunt 70 | 1 4 6 3 7 10 14 3 4 . 17 1 . . Brawler 5 | . . . . . 3 . . 1 . 1 . . . Duelist 7 | . . . . 2 2 2 . 1 . . . . . Protector 1 | . . . . . . . . 1 . . . . . Sentry 23 | . . 5 4 2 3 . 1 2 . 2 3 . 1 Specialist 6 | . . . . 1 . 1 . . . 4 . . . Hunter 14 | . . . 1 2 1 5 . . . 5 . . . Programmer 3 | . . . . . . . . . . 3 . . . Cetus Guard 1 | . . . . . . . . . . . . 1 . Thug 1 | . . . . . . . . . . . . 1 . Butcher 3 | . . . . . . . . . . . 1 2 . Best Kill Streak 12 | 1 2 8 4 7 4 11 4 12 . 9 1 1 1 Combat Bots Only 11 | 1 2 8 3 7 4 11 3 10 . 6 1 1 1 Max Kills in Single Turn 3 | 1 1 1 2 3 1 3 1 2 . 2 1 1 1 Gunslinging 1 | . . . . . . 1 . . . . . . . Exploded 3 | . . . 2 2 1 3 . 2 . 2 . . . Melee . | . . . . . . . . . . . . . . Uniques/NPCs Destroyed . | . . . . . . . . . . . . . . Combat | -11 -10 -9 -8 -8 -8 -8 -8 -8 -8 -6 -6 -6 -6 -------- Run | Yrd Mat Mat Mat Gar Mat Gar Mat Sto Rec Fac Ext Cet Arc Hostile Shots Fired 1506 | 3 15 130 34 110 147 135 18 27 1 558 154 65 109 Missed 509 | 2 4 44 14 32 53 44 7 6 1 197 53 15 37 Damage Taken 11717 | 8 119 778 234 908 1245 1162 180 260 25 3826 588 1030 1354 Core 1446 | . 10 101 . 141 101 167 33 34 . 270 47 76 466 Absorbed by Shields 85 | . . . . . . . . . . . 85 . . Redirected to Shielding 30 | . . . . . . . . . . . 6 15 9 Ignored by Resistances 3844 | 2 36 237 67 256 359 340 51 72 7 1402 362 281 372 Regen/Repaired (Parts) 869 | . . . . . . . 869 . . . . . . Core Remaining (%) 70 | 100 96 74 . . . . . . 13 . . . . Volleys Fired 602 | 2 15 47 24 73 69 74 26 19 52 129 52 9 11 Largest 2 | 2 2 2 2 2 2 2 2 2 1 2 2 2 2 Hottest 97 | 80 63 79 64 64 59 78 76 76 7 91 97 97 97 Shots Fired 1046 | 4 28 90 48 146 131 131 41 30 52 248 67 12 18 Gun 734 | 4 28 90 45 135 117 63 24 13 . 205 7 . 3 Cannon 154 | . . . . . . 49 16 10 . 28 32 6 13 Launcher 67 | . . . 3 11 14 10 . 6 . 15 . 6 2 Special 91 | . . . . . . 9 1 1 52 . 28 . . Kinetic 859 | . 19 87 45 135 117 112 40 23 . 220 39 6 16 Thermal 14 | 2 9 3 . . . . . . . . . . . Explosive 39 | . . . . . . 10 . 6 . 15 . 6 2 Electromagnetic 43 | 2 . . 3 11 14 . . . . 13 . . . Robot Hit Streak 65 | 2 9 29 15 17 22 26 21 13 55 65 13 24 16 Robot Miss Streak 3 | 1 1 2 2 3 2 2 2 1 . 3 3 1 1 Penetration Max 1 | . . . 1 . 1 . 1 1 . 1 . . . Secondary Targets 6 | . . 2 . 1 . 1 . . . 2 . . . Max Gunslinging Chain 1 | . . 1 . 1 . 1 . . . 1 . . . Shots Hit Robots 805 | 3 21 75 33 93 105 80 33 24 52 192 61 10 23 Core Hits 423 | 1 11 30 19 43 55 49 8 26 . 106 29 32 14 Critical Kills 7 | . . 1 . . 1 1 . . . 4 . . . Critical Parts Destroyed 8 | . . . . 1 1 . . 1 . 5 . . . Critical Strikes 25 | . . 1 . 1 2 8 1 1 . 10 1 . . Destroy 15 | . . 1 . 1 2 1 . 1 . 9 . . . Blast 10 | . . . . . . 7 1 . . 1 1 . . Melee Attacks 6 | . . . . . . . . . . . . . 6 Impact . | . . . . . . . . . . . . . . Slashing 6 | . . . . . . . . . . . . . 6 Piercing . | . . . . . . . . . . . . . . Sneak Attacks 1 | . . . . . . . . . . . . . 1 Combat Hostiles . | . . . . . . . . . . . . . . Follow-up Attacks . | . . . . . . . . . . . . . . Damage Inflicted 19605 | 38 302 1111 756 1850 2410 2760 787 1156 . 5785 957 959 734 Guns 9995 | 38 302 1108 561 1420 1612 518 355 239 . 3673 127 . 42 Cannons 3470 | . . . . . . 807 432 281 . 579 830 139 402 Explosions 5855 | . . . 195 430 798 1435 . 636 . 1525 . 810 26 Melee 264 | . . . . . . . . . . . . . 264 Ramming 21 | . . 3 . . . . . . . 8 . 10 . Kinetic 13028 | . 237 1078 561 1420 1612 1325 787 520 . 3948 957 139 444 Thermal 337 | 11 65 30 37 . 194 . . . . . . . . Explosive 4432 | . . . . . . 1435 . 636 . 1525 . 810 26 Electromagnetic 1523 | 27 . . 158 430 604 . . . . 304 . . . Impact . | . . . . . . . . . . . . . . Slashing 264 | . . . . . . . . . . . . . 264 Piercing . | . . . . . . . . . . . . . . Highest Corruption 3 | . . . . . 3 3 3 3 3 . 3 3 3 Average Corruption 2 | . . . . . 2 3 3 3 3 . 3 3 3 Corruption Purged . | . . . . . . . . . . . . . . Corruption Blocked . | . . . . . . . . . . . . . . Effects 98 | . . . . . 6 32 14 9 24 . 8 3 2 Message Errors 23 | . . . . . 2 5 4 1 8 . 3 . . Matter Fused 24 | . . . . . 2 5 3 4 6 . 4 . . Heat Flow Errors 13 | . . . . . 1 6 1 1 2 . 1 1 . Energy Discharges 13 | . . . . . . 4 1 1 4 . . 2 1 Parts Rejected 1 | . . . . . . . . . 1 . . . . Data Loss (minor) 12 | . . . . . . 6 2 2 2 . . . . Data Loss (major) 4 | . . . . . . 2 1 . 1 . . . . Misfires 2 | . . . . . . 1 . . . . . . 1 Alerts 2 | . . . . . . 1 1 . . . . . . Weapon Failures 4 | . . . . . 1 2 1 . . . . . . Overload Shots . | . . . . . . . . . . . . . . Overflow Damage 100 | . . . . . . 17 9 . . 22 12 . 40 Projectiles 38 | . . . . . . 17 9 . . . 12 . . Explosions 22 | . . . . . . . . . . 22 . . . Melee 40 | . . . . . . . . . . . . . 40 Knockbacks 27 | . . . . . . 11 1 2 . 5 8 . . Impact . | . . . . . . . . . . . . . . Kinetic 25 | . . . . . . 9 1 2 . 5 8 . . Secondary 2 | . . . . . . 2 . . . . . . . Self-Inflicted Damage 209 | . . . . . 87 56 . . . . . 54 12 Shots 17 | . . . . . 9 3 . . . . . 3 2 Rammed . | . . . . . . . . . . . . . . Targets Rammed 3 | . . 1 . . . . . . . 1 . 1 . Kicked 3 | . . 1 . . . . . . . 1 . 1 . Crushed . | . . . . . . . . . . . . . . Highest Temperature 284 | 42 . . . . 170 253 284 183 231 233 99 93 22 Average Temperature 38 | 24 . . . . 27 43 71 34 123 26 20 35 11 Received Heat Transfer 4283 | 6 93 414 90 378 675 423 90 162 . 1104 272 279 297 Effects 2 | . . . . . . . 2 . . . . . . Energy Bleed 1 | . . . . . . . 1 . . . . . . Interference 1 | . . . . . . . 1 . . . . . . Siege Activations . | . . . . . . . . . . . . . . Robots Corrupted 1 | . . . . . . . . . . 1 . . . Combat Hostiles 1 | . . . . . . . . . . 1 . . . Parts Fried 10 | . . . 1 4 2 . . . . 3 . . . Impact Corruptions 1 | . . . . . . . . . . 1 . . . Robots Melted . | . . . . . . . . . . . . . . Combat Hostiles . | . . . . . . . . . . . . . . Parts Melted 1 | . . . . . . 1 . . . . . . . Heat Transferred 649 | 25 150 74 100 . 300 . . . . . . . . Parts Sabotaged . | . . . . . . . . . . . . . . Parts Stolen . | . . . . . . . . . . . . . . Parts Stripped . | . . . . . . . . . . . . . . Power Chain Reactions 6 | . . . 2 1 3 . . . . . . . . Alert | -11 -10 -9 -8 -8 -8 -8 -8 -8 -8 -6 -6 -6 -6 ------- Run | Yrd Mat Mat Mat Gar Mat Gar Mat Sto Rec Fac Ext Cet Arc Peak Influence 1472 | 20 146 379 320 1202 827 1472 708 583 191 351 537 242 114 Initial 618 | . 11 2 3 182 504 293 618 187 191 . 6 186 74 Average 342 | 10 57 125 161 748 605 958 628 461 48 126 229 224 72 Maximum Alert Level 4 | . . 1 1 4 3 4 3 2 . 1 2 1 . Low Security (%) 50 | 100 100 80 78 2 . . . 19 100 71 50 14 100 Level 1 16 | . . 19 21 10 . 12 . 7 . 28 38 85 . Level 2 16 | . . . . 25 74 11 88 72 . . 11 . . Level 3 11 | . . . . 56 25 31 11 . . . . . . Level 4 5 | . . . . 5 . 44 . . . . . . . Level 5 . | . . . . . . . . . . . . . . High Security . | . . . . . . . . . . . . . . Max Security . | . . . . . . . . . . . . . . Squads Dispatched 27 | . . . 1 . 4 . 1 2 . 14 4 1 . Investigation 9 | . . . . . 1 . 1 . . 3 3 1 . Extermination 3 | . . . . . . . . . . 3 . . . Reinforcement 11 | . . . 1 . 1 . . . . 8 1 . . Assault 4 | . . . . . 2 . . 2 . . . . . Garrison . | . . . . . . . . . . . . . . Intercept . | . . . . . . . . . . . . . . Searches Triggered . | . . . . . . . . . . . . . . Construction Impeded 2 | . . . . . . . . . . 2 . . . Haulers Reinforced . | . . . . . . . . . . . . . . Active Scanning Responses . | . . . . . . . . . . . . . . Cargo Convoy Interrupts . | . . . . . . . . . . . . . . Stealth | -11 -10 -9 -8 -8 -8 -8 -8 -8 -8 -6 -6 -6 -6 --------- Run | Yrd Mat Mat Mat Gar Mat Gar Mat Sto Rec Fac Ext Cet Arc Distress Signals 14 | . . 2 1 . 4 1 1 3 . 2 . . . Communications Jammed . | . . . . . . . . . . . . . . Distress Signals . | . . . . . . . . . . . . . . Times Spotted 301 | 1 8 24 13 25 40 36 10 19 4 76 28 8 9 Peak Tracking Total 11 | . 3 9 6 5 10 10 5 11 2 8 5 5 3 Tactical Retreats 26 | . 1 3 1 2 3 1 1 1 . 11 2 . . Traps | -11 -10 -9 -8 -8 -8 -8 -8 -8 -8 -6 -6 -6 -6 ------- Run | Yrd Mat Mat Mat Gar Mat Gar Mat Sto Rec Fac Ext Cet Arc Traps Triggered 11 | . 1 . . 4 . 2 . . . 2 2 . . Indirectly 2 | . . . . 2 . . . . . . . . . Trap Hack Attempts . | . . . . . . . . . . . . . . Triggered . | . . . . . . . . . . . . . . Disarmed . | . . . . . . . . . . . . . . Reprogrammed . | . . . . . . . . . . . . . . Reused . | . . . . . . . . . . . . . . Traps Extracted . | . . . . . . . . . . . . . . Installed . | . . . . . . . . . . . . . . Triggered . | . . . . . . . . . . . . . . Most Traps Carried 1 | . . . . 1 . . . . . . . . . Machines | -11 -10 -9 -8 -8 -8 -8 -8 -8 -8 -6 -6 -6 -6 ---------- Run | Yrd Mat Mat Mat Gar Mat Gar Mat Sto Rec Fac Ext Cet Arc Machines Disabled 26 | . . . . 8 1 7 1 1 2 3 1 . 2 Max in Single Turn 1 | . . . . 1 1 1 1 1 . 1 . . 1 Garrison Access 1 | . . . . . . . . . . 1 . . . Garrison Relay 8 | . . . . 4 . 4 . . . . . . . Machines Repaired . | . . . . . . . . . . . . . . Machines Dismantled . | . . . . . . . . . . . . . . Machines Sabotaged . | . . . . . . . . . . . . . . Overloaded Fab Kills . | . . . . . . . . . . . . . . Hacking | -11 -10 -9 -8 -8 -8 -8 -8 -8 -8 -6 -6 -6 -6 --------- Run | Yrd Mat Mat Mat Gar Mat Gar Mat Sto Rec Fac Ext Cet Arc Machines Accessed 44 | . 3 6 1 4 5 4 2 1 2 6 8 2 . Terminals 39 | . 3 6 . 4 4 4 1 1 2 4 8 2 . Fabricators 1 | . . . . . . . . . . 1 . . . Repair Stations 1 | . . . . . . . 1 . . . . . . Recycling Units . | . . . . . . . . . . . . . . Scanalyzers . | . . . . . . . . . . . . . . Garrison Access 3 | . . . 1 . 1 . . . . 1 . . . Total Hacks 98 | . 5 14 3 7 17 5 5 2 8 12 14 6 . Successful 42 | . 3 7 1 4 6 4 3 . 3 3 6 2 . Failed 56 | . 2 7 2 3 11 1 2 2 5 9 8 4 . Catastrophic 9 | . . 3 . . 2 . . . 1 2 . 1 . Database Lockouts . | . . . . . . . . . . . . . . Manual 51 | . 3 11 . . 14 . 3 3 8 8 1 . . Terminals 90 | . 5 14 . 7 16 5 3 2 8 10 14 6 . Fabricators 1 | . . . . . . . . . . 1 . . . Repair Stations 2 | . . . . . . . 2 . . . . . . Recycling Units . | . . . . . . . . . . . . . . Scanalyzers . | . . . . . . . . . . . . . . Garrison Access 5 | . . . 3 . 1 . . . . 1 . . . Terminal Hacks 37 | . 3 7 . 4 5 4 1 . 3 2 6 2 . Record 3 | . . . . . . . . . . . 1 2 . Robot Analysis 3 | . 1 1 . . 1 . . . . . . . . Open Door 6 | . . . . 1 . 1 . . . . 4 . . Level Access Points 3 | . 1 1 . . . . . . 1 . . . . Branch Access Points 1 | . . . . . . . . . . 1 . . . Emergency Access Points 3 | . . . . 1 . 1 . . . 1 . . . Terminal Index 2 | . . 1 . . 1 . . . . . . . . Repair Station Index 1 | . . . . . . . . . 1 . . . . Garrison Index 1 | . . 1 . . . . . . . . . . . Unreport Threat 5 | . . 1 . . 2 . 1 . 1 . . . . Locate Traps 1 | . 1 . . . . . . . . . . . . Transport Status 1 | . . 1 . . . . . . . . . . . Garrison Status 1 | . . 1 . . . . . . . . . . . Recall Reinforcements 1 | . . . . . 1 . . . . . . . . Zone Layout 1 | . . . . . . . . . . . 1 . . Garrison Registry 1 | . . . . 1 . . . . . . . . . Patrol Navigation 1 | . . . . . . 1 . . . . . . . Security Stations 2 | . . . . 1 . 1 . . . . . . . Fabricator Hacks . | . . . . . . . . . . . . . . Repair Station Hacks 2 | . . . . . . . 2 . . . . . . Scan Component 1 | . . . . . . . 1 . . . . . . Repair 1 | . . . . . . . 1 . . . . . . Recycling Unit Hacks . | . . . . . . . . . . . . . . Scanalyzer . | . . . . . . . . . . . . . . Garrison Access Hacks 3 | . . . 1 . 1 . . . . 1 . . . Unlock Access 2 | . . . 1 . 1 . . . . . . . . Seal Access 1 | . . . . . . . . . . 1 . . . Unauthorized Hacks . | . . . . . . . . . . . . . . Terminals . | . . . . . . . . . . . . . . Fabricators . | . . . . . . . . . . . . . . Repair Stations . | . . . . . . . . . . . . . . Recycling Units . | . . . . . . . . . . . . . . Scanalyzers . | . . . . . . . . . . . . . . Garrison Access . | . . . . . . . . . . . . . . Data Cores Recovered . | . . . . . . . . . . . . . . Used . | . . . . . . . . . . . . . . Hacking Detections 29 | . 1 3 . 3 4 1 1 2 2 5 5 2 . Full Trace Events 9 | . . 1 . 1 1 . 1 . . 1 3 1 . Feedback Events 1 | . . . . . 1 . . . . . . . . Corruption 1 | . . . . . 1 . . . . . . . . Feedback Blocked . | . . . . . . . . . . . . . . Robot Schematics Acquired . | . . . . . . . . . . . . . . Robots Built . | . . . . . . . . . . . . . . Authchips . | . . . . . . . . . . . . . . Time . | . . . . . . . . . . . . . . Total Robot Build Rating . | . . . . . . . . . . . . . . Part Schematics Acquired . | . . . . . . . . . . . . . . Parts Built . | . . . . . . . . . . . . . . Authchips . | . . . . . . . . . . . . . . Time . | . . . . . . . . . . . . . . Total Part Build Rating . | . . . . . . . . . . . . . . Parts Repaired 1 | . . . . . . . 1 . . . . . . Time 56 | . . . . . . . 56 . . . . . . Parts Recycled . | . . . . . . . . . . . . . . Recycled Matter . | . . . . . . . . . . . . . . Retrieved Matter . | . . . . . . . . . . . . . . Retrieved Components . | . . . . . . . . . . . . . . Parts Scanalyzed . | . . . . . . . . . . . . . . Part Schematics Acquired . | . . . . . . . . . . . . . . Parts Damaged . | . . . . . . . . . . . . . . Bothacking | -11 -10 -9 -8 -8 -8 -8 -8 -8 -8 -6 -6 -6 -6 ------------ Run | Yrd Mat Mat Mat Gar Mat Gar Mat Sto Rec Fac Ext Cet Arc Used RIF Installer 2 | . . . . 1 . 1 . . . . . . . Command Fork 1 | . . . . . . 1 . . . . . . . Robots Hacked 6 | . . . . . . 1 1 1 2 . 1 . . Non-combat 3 | . . . . . . . 1 1 1 . . . . Combat 3 | . . . . . . 1 . . 1 . 1 . . Robot Hacks Applied 6 | . . . . . . 1 1 1 2 . 1 . . parse_system 3 | . . . . . . 1 . . 1 . 1 . . no_distress 2 | . . . . . . . 1 1 . . . . . ignore_repairs 1 | . . . . . . . . . 1 . . . . Relay Couplers Released 34 | . . . . 17 . 17 . . . . . . . Machine Destruction 34 | . . . . 17 . 17 . . . . . . . Attached 5 | . . . . 3 . 2 . . . . . . . Fabnet Peak Effective % . | . . . . . . . . . . . . . . Robots Rewired 37 | . . . . . . 3 . . 20 . 14 . . Allies Hacked . | . . . . . . . . . . . . . . Hacks Repelled . | . . . . . . . . . . . . . . Allies | -11 -10 -9 -8 -8 -8 -8 -8 -8 -8 -6 -6 -6 -6 -------- Run | Yrd Mat Mat Mat Gar Mat Gar Mat Sto Rec Fac Ext Cet Arc Total Allies 48 | . . . . 2 . 5 . 2 20 . 19 . . Largest Group 17 | . . . . 2 . 3 3 2 17 13 11 8 . Highest-Rated Group 441 | . . . . 62 . 72 72 62 244 186 441 220 . Highest-Rated Ally 159 | . . . . 31 . 31 24 31 34 34 159 39 . Total Orders 4 | . . . . . . . . . 4 . . . . STAY 1 | . . . . . . . . . 1 . . . . FOLLOW 3 | . . . . . . . . . 3 . . . . Ally Attacks 276 | . . . . 6 . 17 22 12 27 11 157 24 . Total Damage 6756 | . . . . 105 . 298 435 168 617 309 4254 570 . Kills 55 | . . . . 2 . 5 5 3 7 1 28 4 . Allies Corrupted . | . . . . . . . . . . . . . . Allies Melted . | . . . . . . . . . . . . . . Intel | -11 -10 -9 -8 -8 -8 -8 -8 -8 -8 -6 -6 -6 -6 ------- Run | Yrd Mat Mat Mat Gar Mat Gar Mat Sto Rec Fac Ext Cet Arc Robot Analysis Total 3 | . 1 1 . . 1 . . . . . . . . Derelict Logs Recovered . | . . . . . . . . . . . . . . Drone Launches . | . . . . . . . . . . . . . . Drone Recoveries . | . . . . . . . . . . . . . . Exploration | -11 -10 -9 -8 -8 -8 -8 -8 -8 -8 -6 -6 -6 -6 ------------- Run | Yrd Mat Mat Mat Gar Mat Gar Mat Sto Rec Fac Ext Cet Arc Turns Passed 12906 | 169 507 852 253 1252 1064 1394 541 358 1517 3772 942 183 102 Spaces Moved 7333 | 73 346 552 138 773 622 881 335 239 688 1996 518 124 48 Core 36 | 16 . . . . . . . . . . . . 20 Treads . | . . . . . . . . . . . . . . Legs 7297 | 57 346 552 138 773 622 881 335 239 688 1996 518 124 28 Wheels . | . . . . . . . . . . . . . . Hover . | . . . . . . . . . . . . . . Flight . | . . . . . . . . . . . . . . Fastest Speed 50 | 50 120 120 120 120 130 130 115 115 115 100 125 110 50 Average Speed 137 | 104 120 120 120 124 130 130 117 115 207 139 147 114 111 Slowest Speed 215 | 120 120 120 120 130 140 140 130 115 215 210 206 186 186 Overloaded Moves . | . . . . . . . . . . . . . . Propulsion Burnouts . | . . . . . . . . . . . . . . Robots Hopped . | . . . . . . . . . . . . . . Cave-ins Triggered . | . . . . . . . . . . . . . . Exploration Rate (%) 55 | 6 58 48 15 79 37 92 26 37 97 57 79 68 73 Regions Visited 13 Branch Regions 5 Pre-discovered Areas 1 | . . . . . . . . 1 . . . . . Known Exits Taken 9 | . 1 1 1 . 1 . . 1 1 1 1 1 . Unknown Exits Taken 2 | 1 . . . . . . 1 . . . . . . Scrap Searched . | . . . . . . . . . . . . . . Spaces Dug 6 | . . . . . . . . . . 6 . . . Terrain Destroyed 222 | . . . 12 2 15 15 2 43 . 90 . 38 5 Melee . | . . . . . . . . . . . . . . Projectile 12 | . . . . 2 . . 2 2 . 6 . . . AOE 209 | . . . 12 . 15 15 . 41 . 83 . 38 5 Terrain Rammed . | . . . . . . . . . . . . . . Walls Destroyed . | . . . . . . . . . . . . . . Machines Disabled . | . . . . . . . . . . . . . . Actions | -11 -10 -9 -8 -8 -8 -8 -8 -8 -8 -6 -6 -6 -6 --------- Run | Yrd Mat Mat Mat Gar Mat Gar Mat Sto Rec Fac Ext Cet Arc Total 9242 | 159 415 656 177 925 751 1008 449 292 768 2766 653 153 70 Wait 819 | 79 19 12 . 12 26 3 71 25 9 509 44 10 . Move 7319 | 72 345 551 137 771 621 880 334 238 687 1995 517 123 48 Hop . | . . . . . . . . . . . . . . Pick Up 95 | 1 11 5 1 6 10 11 5 2 12 26 5 . . Fast Attach 62 | 5 4 7 4 6 5 7 3 1 1 15 . 1 3 Attach 36 | . . 4 . 3 2 3 . 2 . 11 2 7 2 Detach 19 | . 1 . . 6 3 2 . 1 . 5 . 1 . Swap 106 | . 7 12 5 17 4 10 2 3 2 31 12 1 . Drop 146 | . 13 17 6 23 11 13 8 1 3 44 7 . . Fire 602 | 2 15 47 24 73 69 74 26 19 52 129 52 9 11 Melee 6 | . . . . . . . . . . . . . 6 Ram . | . . . . . . . . . . . . . . Kick 3 | . . 1 . . . . . . . 1 . 1 . Crush . | . . . . . . . . . . . . . . Escape Stasis 21 | . . . . 7 . 4 . . . . 10 . . Rewire 8 | . . . . 1 . 1 . . 2 . 4 . . Trap . | . . . . . . . . . . . . . . Miscellaneous . | . . . . . . . . . . . . . . Route ------- -11/Scrapyard -10/Materials (discovered 4 exits: *Mat x3 / [*Min]) -9/Materials (discovered 3 exits: *Mat x3) -8/Materials (discovered 2 exits: *Sto / Gar) -8/Garrison (discovered 4 exits: *Mat x4) -8/Materials (discovered 3 exits: [*Fac] / *Sto / Gar) -8/Garrison (discovered 4 exits: [*Fac x3] / *Mat) -8/Materials -8/Storage -8/Recycling -6/Factory (discovered 5 exits: *Fac / Low x2 / *Ext x2) -6/Extension (discovered 2 exits: *Fac / *Cet) -6/Cetus -6/Archives (discovered 1 exit: [*Hub]) History --------- Turn | Location | Event 2 | -11/Scrapyard | Met Revision 17 71 | -11/Scrapyard | Discovered new exit (range 8) 170 | -11/Scrapyard | Entered Materials 303 | -10/Materials | Build established: Mutant 326 | -10/Materials | Discovered new exit (range 15) 519 | -10/Materials | Discovered new exit (range 11) 547 | -10/Materials | Identified exit to Materials 677 | -10/Materials | Entered another Materials area 677 | -9/Materials | Evolved 2 slots: Propulsion x2 852 | -9/Materials | Discovered new exit (range 5) 1024 | -9/Materials | Destroyed 8 combat bots 1061 | -9/Materials | Lost 3 parts (1p1n1w) 1202 | -9/Materials | Identified exit to Materials 1270 | -9/Materials | Build established: Scavenger-Mutant 1529 | -9/Materials | Entered another Materials area 1529 | -8/Materials | Evolved 2 slots: Utility x2 1754 | -8/Materials | Discovered new exit (range 10) 1781 | -8/Materials | Identified exit to Garrison 1782 | -8/Materials | Entered Garrison 1804 | -8/Garrison | Triggered checkpoint 1846 | -8/Garrison | Garrison Relay disabled 1986 | -8/Garrison | Learned Materials security intel 2006 | -8/Garrison | Discovered new exit (range 64) 2006 | -8/Garrison | Discovered new exit (range 14) 2006 | -8/Garrison | Discovered new exit (range 51) 2006 | -8/Garrison | Discovered new exit (range 61) 2126 | -8/Garrison | Installed Relay Interface Framework 2200 | -8/Garrison | Destroyed 7 combat bots 2358 | -8/Garrison | Triggered checkpoint 2361 | -8/Garrison | Garrison Relay disabled 2513 | -8/Garrison | Found Imp. Powered Armor 2598 | -8/Garrison | Triggered checkpoint 2768 | -8/Garrison | Build established: Mutant 2778 | -8/Garrison | Triggered checkpoint 2790 | -8/Garrison | Garrison Relay disabled 2850 | -8/Garrison | Rescued a captive Derelict 2852 | -8/Garrison | Rescued a captive Derelict 2936 | -8/Garrison | Triggered checkpoint 2971 | -8/Garrison | Garrison Relay disabled 3034 | -8/Garrison | Entered Materials 3358 | -8/Materials | Identified exit to Garrison 3393 | -8/Materials | Discovered new exit (range 3) 3434 | -8/Materials | First assault squad dispatched 3728 | -8/Materials | Discovered new exit (range 19) 4098 | -8/Materials | Entered Garrison 4224 | -8/Garrison | Triggered checkpoint 4255 | -8/Garrison | Expanded RIF knowledge: Command Fork 4271 | -8/Garrison | Garrison Relay disabled 4308 | -8/Garrison | Rescued a captive Derelict 4308 | -8/Garrison | Rescued a captive Derelict 4408 | -8/Garrison | Triggered checkpoint 4426 | -8/Garrison | Core integrity fell below 50% 4455 | -8/Garrison | Destroyed 11 combat bots 4478 | -8/Garrison | Triggered checkpoint 4578 | -8/Garrison | Discovered new exit (range 14) 4642 | -8/Garrison | Triggered checkpoint 4667 | -8/Garrison | Garrison Relay disabled 4840 | -8/Garrison | Triggered checkpoint 4871 | -8/Garrison | Garrison Relay disabled 4919 | -8/Garrison | Discovered new exit (range 10) 5063 | -8/Garrison | Learned Factory security intel 5082 | -8/Garrison | Triggered checkpoint 5098 | -8/Garrison | Garrison Relay disabled 5108 | -8/Garrison | Triggered checkpoint 5216 | -8/Garrison | Triggered checkpoint 5247 | -8/Garrison | Discovered new exit (range 17) 5456 | -8/Garrison | Discovered new exit (range 6) 5492 | -8/Garrison | Entered Materials 5492 | -8/Materials | Accompanied by 3 allies 5803 | -8/Materials | Discovered new exit (range 6) 5978 | -8/Materials | Repaired Med. Armored Exoskeleton 6004 | -8/Materials | Core integrity fell below 20% 6033 | -8/Materials | Entered Storage 6045 | -8/Storage | Met a pair of Derelict thieves 6194 | -8/Storage | Destroyed 10 combat bots 6241 | -8/Storage | Used back door to open Recycling access 6241 | -8/Storage | Discovered new exit (range 5) 6265 | -8/Storage | Learned location of Armory (-3) 6390 | -8/Storage | Identified exit to Recycling 6391 | -8/Storage | Entered Recycling 6716 | -8/Recycling | Build established: Commander-Mutant 7032 | -8/Recycling | Lost 3 allies 7461 | -8/Recycling | Identified exit to Factory 7607 | -8/Recycling | Lost 4 allies 7908 | -8/Recycling | Entered Factory 7908 | -6/Factory | Accompanied by 13 allies 7908 | -6/Factory | Evolved 4 slots: Propulsion x3, Utility x1 8118 | -6/Factory | Lost 13 allies 8388 | -6/Factory | Build established: Mutant 8932 | -6/Factory | Lost 3 parts (1n1u1w) 9253 | -6/Factory | Spotted B-75 Beast 10129 | -6/Factory | Identified exit to Lower Caves 10129 | -6/Factory | Identified exit to Extension 10190 | -6/Factory | Discovered new exit (range 14) 10215 | -6/Factory | Identified exit to Factory 11680 | -6/Factory | Entered Extension 11756 | -6/Extension | Rescued A7 12121 | -6/Extension | Rescued a captive Derelict 12122 | -6/Extension | Rescued a captive Derelict 12150 | -6/Extension | Rescued a captive Derelict 12157 | -6/Extension | Spotted B-75 Beast 12167 | -6/Extension | Spotted B-75 Beast 12215 | -6/Extension | Lost 6 allies 12275 | -6/Extension | Rescued a captive Derelict 12431 | -6/Extension | Extracted ID and sensor layout for unrecognized location from A7's data core 12599 | -6/Extension | Discovered exit to Factory (range 16) 12603 | -6/Extension | Discovered new exit (range 10) 12614 | -6/Extension | Identified exit to Cetus 12622 | -6/Extension | Entered Cetus 12622 | -6/Cetus | Accompanied by 8 allies 12640 | -6/Cetus | Spotted Cetus Guard 12640 | -6/Cetus | Spotted Cetus Guard 12640 | -6/Cetus | Spotted Cetus Guard 12640 | -6/Cetus | Spotted Cetus Guard 12661 | -6/Cetus | Allies destroyed Cetus Guard 12671 | -6/Cetus | Allies destroyed Cetus Guard 12680 | -6/Cetus | Destroyed Cetus Guard 12692 | -6/Cetus | Allies destroyed Cetus Guard 12698 | -6/Cetus | Lost 5 allies 12720 | -6/Cetus | Lost 4 parts (2n1u1w) 12781 | -6/Cetus | Discovered new exit (range 21) 12803 | -6/Cetus | Identified exit to Archives 12805 | -6/Cetus | Entered Archives 12865 | -6/Archives | Core integrity fell below 50% 12869 | -6/Archives | Unable to access archive contents 12892 | -6/Archives | Core integrity fell below 20% 12900 | -6/Archives | Released all parts (2) 12903 | -6/Archives | Discovered new exit (range 16) 12907 | -6/Archives | Destroyed by Y-64 Sentinel with Wave Gun Last Messages --------------- 12890_ Acquired Grenade Launcher. 12891_ Penetrated by Slug. 12896_ Slug penetrates Wall. 12897_ Archive Hub disabled. 12897_ Grenade Launcher destroyed. 12897_ Destroyed Grenade Launcher. 12898_ Penetrated by Slug. 12899_ Phasing Sabre destroyed. 12899_ Penetrated by Slug. 12899_ Hvy. Flak Cannon destroyed. 12900_ Released Enh. Optical Array. 12900_ Released Adv. Signal Interpreter. 12901_ Penetrated by Slug. 12902_ Slug penetrates Archive Terminal. 12902_ Archive Terminal disabled. 12903_ EXIT=FOUND 12904_ Slug penetrates Wall. 12905_ Archive Hub disabled. 12905_ Penetrated by Slug. 12906_ Slug penetrates Wall. Map ----- +----------------------------------------------------+ | | | ???????????????????????????????????????????? | | ???????????????????????????????????????????? | | ???????????????????????????????????????????? | | ???????????????????????????????????????????? | | ????????????????????? #????????????????????? | | ??????????????????? #????????????????????? | | ????????????????""" # ???????????????????? | | ???????????????"""" +????????????????????? | | ???????????????"""" #????????????????????? | | ???????????????""""" # ?????????????????? | | ????????????????"""" # ?????????????????? | | ????????????????"""" # ?????????????????? | | ??????????????###"#"### #????????????????? | | ??????????????#"" """#o #????????????????? | | ??????????????#" """# #????????????????? | | ??????????????# " "# #????????????????? | | ??????????##### #o ##???????????????? | | ########### #= Y #####???????????? | | ! *] """"#???????????? | | *= o """"#???????????? | | !![ """"???????????? | | ####+#### Y V"#???????????? | | # o o """"???????????? | | # """"#???????????? | | """""" Y @ """"#???????????? | | """""""""#" #########???????? | | """"""""""" ????? | | """""""""#"""" o ????? | | """""""""#"""" o ????? | | ############## ############????? | | ?????????????## # " ##???????????????? | | ??????????????# #""" " "#????????????????? | | ??????????????# #"""V"""#????????????????? | | ??????????????# #"""""""#????????????????? | | ??????????????# ###"#"###????????????????? | | ??????????????# #? """"??????????????????? | | ??????????????# #????????????????????????? | | ??????????????# #????????????????????????? | | ??????????????# #????????????????????????? | | ??????????????# +????????????????????????? | | ??????????????# ?????????????????????????? | | ??????????????# ?????????????????????????? | | ??????????????# < ?????????????????????????? | | ???????????????????????????????????????????? | | ???????????????????????????????????????????? | | ???????????????????????????????????????????? | | ???????????????????????????????????????????? | | | | | +----------------------------------------------------+ Best States ------------- Heat Dissipation 63 Energy Generation 18 Energy Capacity 310 Matter Stores 300 Matter Capacity 300 Sight Range 22 Robot Scan Range 16 Terrain Scan Density 10 Base Temperature (-) 150 Corruption Block 6 Armor Coverage 550 Resistance: KI 50 Resistance: TH 20 Resistance: EX 20 Resistance: EM 35 Resistance: I 20 Resistance: S 20 Resistance: P 20 Core Shielding 20 Evasion (%) 55 Melee Accuracy 5 Offensive Hacking 10 Relay Coupler Types 1 Relay Coupler Value 39 Authchip Count 3 Item Schematics ----------------- None Robot Schematics ------------------ None Fabricated ------------ Nothing Alien Tech Used ----------------- None Achievements -------------- Infiltrator Challenges ------------ None Game ------ Seed AlertVariableFlail Manual? 0 Play Time 02:15:18 Cumulative 80.0 hours Start 2024.05.12 @ 10:22:40 End 2024.05.12 @ 12:49:17 Sessions 1 Manual Loads 0 Difficulty Adventurer Special Mode None Game No. 13 Rogue 2 Adventurer 7 Explorer 4 Win Type - Total 2 Types 2/0/0/0/0/0/0/0/0 Lore% 49 Gallery% 59 Achievement% 55 Wizard Run 0 Options --------- Layout 1 ASCII 0 Keyboard 1 Movement Vi Keybinds 0 Fullscreen 2 Font 48/Smallcaps Map View 55x38 Zoom Use 0% Tactical HUD 1 Map Filters NONE Filters NONE Steam 1 RUN: 7c18e0b2-a85a-4cbb-896a-28c52e5509ab